bitfinex/quotes_BTCUSD_20240810
["timestamp","ask_amount","ask_price","bid_price","bid_amount"]
[1723323891477,0.17088694,61091.0,61090.0,0.1406152]
[1723323892647,0.17084558,61091.0,61090.0,0.1406152]
[1723323893248,0.17085173,61091.0,61090.0,0.1406152]
[1723323893673,0.04801649,61091.0,61090.0,0.1406152]
[1723323896256,0.0480567,61091.0,61090.0,0.1406152]
[1723323898448,0.0580567,61091.0,61090.0,0.1406152]
[1723323898668,0.02497696,61091.0,61090.0,0.9287732]
[1723323898878,0.02497696,61091.0,61090.0,1.0924652]
[1723323899078,0.02497696,61091.0,61090.0,1.32654185]
[1723323899484,0.02497696,61091.0,61090.0,0.95795212]
[1723323899692,0.01697696,61091.0,61090.0,1.09186943]
[1723323899922,0.02197696,61091.0,61090.0,0.95795212]
[1723323900121,0.01497696,61091.0,61090.0,1.09162163]
[1723323900429,0.01697696,61091.0,61090.0,1.09161354]
[1723323900692,0.02692932,61091.0,61090.0,1.15957748]
[1723323900902,0.02692932,61091.0,61090.0,1.09161354]
[1723323900903,0.03692932,61091.0,61090.0,1.09161354]
[1723323901049,0.02192932,61091.0,61090.0,1.09161354]
[1723323901250,0.01697696,61091.0,61090.0,1.16957703]
[1723323901658,0.01697696,61091.0,61090.0,1.1016136]
[1723323902061,0.02697696,61091.0,61090.0,1.1016136]
[1723323902261,0.03192932,61091.0,61090.0,1.1016136]
[1723323902468,0.02492932,61091.0,61090.0,1.1016136]
[1723323902673,0.01595236,61091.0,61090.0,1.1016136]
[1723323902869,0.02792932,61091.0,61090.0,1.01101354]
[1723323903085,0.02492932,61091.0,61090.0,1.01101354]
[1723323903284,0.02592932,61091.0,61090.0,1.01701354]
[1723323903490,0.02692932,61091.0,61090.0,1.02301354]
[1723323903697,0.02692932,61091.0,61090.0,1.01701354]
[1723323903698,0.02592932,61091.0,61090.0,1.01701354]
[1723323904262,0.02692932,61091.0,61090.0,1.01701354]
[1723323904635,0.02792932,61091.0,61090.0,1.02301354]
[1723323906179,0.02692932,61091.0,61090.0,1.01701354]
[1723323906539,0.01795236,61091.0,61090.0,1.02202852]
[1723323907371,0.01297696,61091.0,61090.0,1.02202852]
[1723323907618,0.003,61091.0,61090.0,1.02202852]
[1723323907960,0.003,61091.0,61090.0,1.25367811]
[1723323908167,0.003,61091.0,61090.0,1.72233065]
[1723323908373,0.003,61091.0,61090.0,1.81423015]
[1723323908571,0.003,61091.0,61090.0,1.64897486]
[1723323909330,0.003,61091.0,61090.0,1.81266686]
[1723323909535,0.003,61091.0,61090.0,1.65400387]
[1723323909826,0.000832,61096.0,61095.0,0.878755]
[1723323910069,0.000832,61096.0,61095.0,1.61967303]
[1723323910288,0.000832,61096.0,61095.0,1.24816992]
[1723323910931,0.001832,61096.0,61095.0,1.39025612]
[1723323911860,0.002832,61096.0,61095.0,1.26416992]
[1723323912253,0.002832,61096.0,61095.0,1.43289656]
[1723323912453,0.002832,61096.0,61095.0,1.42784892]
[1723323912683,0.002832,61096.0,61095.0,1.26416992]
[1723323913406,0.002832,61096.0,61095.0,1.26921756]
[1723323913721,0.002832,61096.0,61095.0,1.26416992]
[1723323914571,0.002832,61096.0,61095.0,1.26921756]
[1723323915175,0.002832,61096.0,61095.0,1.25321756]
[1723323915176,0.000832,61096.0,61095.0,1.25321756]
[1723323915372,0.000832,61096.0,61095.0,1.33114821]
[1723323915693,0.002832,61096.0,61095.0,1.34714821]
[1723323915903,0.002832,61096.0,61095.0,1.27920714]
[1723323916106,0.002832,61096.0,61095.0,1.34714821]
[1723323916687,0.001832,61096.0,61095.0,1.33914821]
[1723323916891,0.000832,61096.0,61095.0,1.33114821]
[1723323917086,0.001832,61096.0,61095.0,1.34514821]
[1723323917297,0.000832,61096.0,61095.0,1.33114821]
[1723323917672,0.001832,61096.0,61095.0,1.35914821]
[1723323917871,0.000832,61096.0,61095.0,1.34514821]
[1723323918081,0.000832,61096.0,61095.0,1.34010057]
[1723323918311,0.000832,61096.0,61095.0,1.34514821]
[1723323919560,0.000832,61096.0,61095.0,1.34514931]
[1723323919780,0.001832,61096.0,61095.0,1.27150167]
[1723323920216,0.001832,61096.0,61095.0,1.35210167]
[1723323920421,0.001832,61096.0,61095.0,1.41821871]
[1723323921078,0.001832,61096.0,61095.0,1.40556359]
[1723323921235,0.001832,61096.0,61095.0,1.48616359]
[1723323922259,0.001832,61096.0,61095.0,1.48816359]
[1723323923454,0.001832,61096.0,61095.0,1.35410359]
[1723323923816,0.001832,61096.0,61095.0,1.35410369]
[1723323924405,0.001832,61096.0,61095.0,1.2861595]
[1723323924617,0.001832,61096.0,61095.0,1.48826989]
[1723323924974,0.001832,61096.0,61095.0,1.82685558]
[1723323924975,0.00100532,61096.0,61095.0,1.82685558]
[1723323925314,0.00100532,61096.0,61095.0,1.81980794]
[1723323925700,0.00100532,61096.0,61095.0,1.82685558]
[1723323926420,0.00100532,61096.0,61095.0,1.82684912]
[1723323928769,0.00100532,61096.0,61095.0,1.65693235]
[1723323928978,0.00100532,61096.0,61095.0,1.82678494]
[1723323931412,0.00100532,61096.0,61095.0,1.92304211]
[1723323931648,0.00100532,61096.0,61095.0,1.94007992]
[1723323932002,0.00100532,61096.0,61095.0,1.94008002]
[1723323932555,0.00100532,61096.0,61095.0,2.10571935]
[1723323932760,0.00100532,61096.0,61095.0,1.94008289]
[1723323933160,0.00100532,61096.0,61095.0,2.10571935]
[1723323933320,0.00100532,61096.0,61095.0,1.94008289]
[1723323933527,0.00100532,61096.0,61095.0,2.10571935]
[1723323935284,0.00100532,61096.0,61095.0,1.86084746]
[1723323935509,0.00100532,61096.0,61095.0,2.10845096]
[1723323935688,0.00100532,61096.0,61095.0,2.10845251]
[1723323936591,0.00100532,61096.0,61095.0,2.09864259]
[1723323937354,0.00997696,61107.0,61106.0,0.879525]
[1723323937555,0.00997696,61107.0,61106.0,1.6038622]
[1723323937781,0.00997696,61107.0,61106.0,1.60387805]
[1723323938933,0.01197696,61107.0,61106.0,1.62595802]
[1723323939506,0.01197696,61107.0,61106.0,1.32613319]
[1723323939712,0.01197696,61107.0,61106.0,1.62595878]
[1723323941476,0.01197696,61107.0,61106.0,1.63564515]
[1723323942259,0.01197696,61107.0,61106.0,1.73803544]
[1723323942672,0.01197696,61107.0,61106.0,1.73807118]
[1723323943627,0.01197696,61107.0,61106.0,1.83807118]
[1723323943827,0.01280896,61107.0,61106.0,1.83807118]
[1723323944452,0.01280896,61107.0,61106.0,1.91637118]
[1723323946108,0.01280896,61107.0,61106.0,1.91636826]
[1723323946303,0.01280896,61107.0,61106.0,1.9163612]
[1723323949106,0.15940896,61107.0,61106.0,1.6949612]
[1723323949306,0.15940896,61107.0,61106.0,1.7755612]
[1723323949732,0.15940896,61107.0,61106.0,1.23791658]
[1723323949941,0.15940896,61107.0,61106.0,1.77515127]
[1723323950314,0.15940896,61107.0,61106.0,1.77516972]
[1723323950740,0.15940896,61107.0,61106.0,1.68422887]
[1723323950940,0.15940896,61107.0,61106.0,1.75218107]
[1723323951542,0.15940896,61107.0,61106.0,1.75215207]
[1723323953360,0.15940896,61107.0,61106.0,1.75213759]
[1723323954310,0.15940896,61107.0,61106.0,1.84994762]
[1723323954509,0.15940896,61107.0,61106.0,1.75213759]
[1723323955069,0.149432,61107.0,61106.0,1.75213759]
[1723323955299,0.149432,61107.0,61106.0,1.84994762]
[1723323956207,0.15940896,61107.0,61106.0,1.84994762]
[1723323956403,0.15940896,61107.0,61106.0,1.85012764]
[1723323959941,0.15940896,61107.0,61106.0,1.85011347]
[1723323960613,0.15940896,61107.0,61106.0,1.31289246]
[1723323960772,0.15940896,61107.0,61106.0,1.84991937]
[1723323961173,0.15940896,61107.0,61106.0,1.68004277]
[1723323961419,0.15940896,61107.0,61106.0,1.84989398]
[1723323962502,0.01280896,61107.0,61106.0,1.84988455]
[1723323963296,0.01280896,61107.0,61106.0,1.84989497]
[1723323964497,0.15140896,61107.0,61106.0,1.84989497]
[1723323965893,0.141432,61107.0,61106.0,1.84989497]
[1723323966096,0.15140896,61107.0,61106.0,1.84989497]
[1723323966720,0.15140896,61107.0,61106.0,1.61210398]
[1723323966929,0.15140896,61107.0,61106.0,1.84989531]
[1723323967271,0.15140896,61107.0,61106.0,1.58206848]
[1723323967474,0.15140896,61107.0,61106.0,1.84991739]
[1723323968144,0.15140896,61107.0,61106.0,1.75191923]
[1723323968346,0.08950896,61107.0,61106.0,1.75191923]
[1723323968559,0.01280896,61107.0,61106.0,1.75191923]
[1723323968943,0.01280896,61107.0,61106.0,1.87438696]
[1723323970458,0.01280896,61107.0,61106.0,1.40532602]
[1723323970684,0.01280896,61107.0,61106.0,1.87495547]
[1723323970887,0.01280896,61107.0,61106.0,1.40532592]
[1723323971094,0.01280896,61107.0,61106.0,1.87495413]
[1723323971682,0.01280896,61107.0,61106.0,1.7051054]
[1723323971891,0.01280896,61107.0,61106.0,1.87495462]
[1723323972481,0.01280896,61107.0,61106.0,1.87500025]
[1723323972683,0.01280896,61107.0,61106.0,1.89800025]
[1723323973059,0.01280896,61107.0,61106.0,2.04190025]
[1723323973912,0.01280896,61107.0,61106.0,2.06220412]
[1723323973913,0.002832,61107.0,61106.0,2.06220412]
[1723323974109,0.000832,61111.0,61110.0,0.23276664]
[1723323974312,0.00997696,61122.0,61116.0,0.471934]
[1723323974617,0.0768,61127.0,61116.0,2.05309423]
[1723323974748,0.01495236,61124.0,61116.0,2.05309423]
[1723323975161,0.0768,61127.0,61116.0,2.05309423]
[1723323975376,0.01495236,61126.0,61116.0,2.05309423]
[1723323975605,0.01495236,61126.0,61116.0,2.0540906]
[1723323976152,0.0768,61127.0,61116.0,2.0540906]
[1723323976153,0.09175236,61127.0,61116.0,2.0540906]
[1723323976344,0.08677696,61127.0,61116.0,2.0540906]
[1723323976544,0.08677696,61127.0,61116.0,2.06388969]
[1723323976751,0.00997696,61127.0,61116.0,2.09188969]
[1723323977156,0.00832,61128.0,61116.0,1.98616652]
[1723323977359,0.01492932,61127.0,61116.0,2.06808518]
[1723323977600,0.01,61126.0,61116.0,2.08208518]
[1723323977782,0.01495236,61126.0,61116.0,2.08208518]
[1723323977981,0.01495236,61126.0,61116.0,1.89754351]
[1723323978206,0.01495236,61126.0,61116.0,1.74581638]
[1723323978207,0.07132,61121.0,61116.0,1.74581638]
[1723323978406,0.07132,61121.0,61116.0,1.69121638]
[1723323978407,0.08184646,61120.0,61116.0,1.69121638]
[1723323978587,0.01829696,61119.0,61116.0,1.60609247]
[1723323978781,0.00997696,61118.0,61116.0,1.60609247]
[1723323979099,0.00997696,61118.0,61116.0,1.33390631]
[1723323979260,0.00997696,61118.0,61116.0,1.5037261]
[1723323979464,0.00997696,61118.0,61116.0,1.33390631]
[1723323979909,0.00997696,61118.0,61116.0,1.32943824]
[1723323980066,0.00832,61119.0,61116.0,1.32943824]
[1723323980586,0.00832,61119.0,61116.0,1.34343824]
[1723323980787,0.00997696,61118.0,61116.0,1.34343824]
[1723323980981,0.00832,61119.0,61116.0,1.32943824]
[1723323981394,0.00997696,61118.0,61116.0,1.34343824]
[1723323981715,0.00832,61119.0,61116.0,1.34343824]
[1723323981924,0.00997696,61118.0,61116.0,1.34325507]
[1723323982100,0.15558436,61117.0,61116.0,1.23965507]
[1723323982306,0.15558436,61117.0,61116.0,1.11824985]
[1723323982307,0.16556132,61117.0,61116.0,1.11824985]
[1723323982485,0.16556132,61117.0,61116.0,1.25233392]
[1723323982885,0.140632,61117.0,61116.0,1.25233392]
[1723323983346,0.140632,61117.0,61116.0,1.29226524]
[1723323983728,0.000832,61117.0,61116.0,1.10124985]
[1723323983922,0.000832,61117.0,61116.0,1.32107703]
[1723323984281,0.000832,61117.0,61116.0,1.31507703]
[1723323984558,0.000832,61117.0,61116.0,1.32307703]
[1723323985742,0.000832,61117.0,61116.0,1.33107703]
[1723323986102,0.000832,61117.0,61116.0,1.33110468]
[1723323987910,0.15060896,61117.0,61116.0,1.33110468]
[1723323989870,0.15060896,61117.0,61116.0,1.33106437]
[1723323990242,0.140632,61117.0,61116.0,1.33106437]
[1723323990449,0.15060896,61117.0,61116.0,1.33106437]
[1723323990884,0.01080896,61117.0,61116.0,1.33106437]
[1723323991086,0.000832,61117.0,61116.0,1.33106437]
[1723323992525,0.000832,61117.0,61116.0,1.5008897]
[1723323993788,0.000832,61117.0,61116.0,1.50105219]
[1723323994340,0.000832,61117.0,61116.0,1.50104852]
[1723323997612,0.000832,61117.0,61116.0,1.50130697]
[1723323997826,0.000832,61117.0,61116.0,1.66708424]
[1723323999297,0.000832,61117.0,61116.0,1.76945291]
[1723323999638,0.000832,61117.0,61116.0,1.85055291]
[1723324001080,0.000832,61117.0,61116.0,1.46936279]
[1723324001264,0.000832,61117.0,61116.0,1.76972243]
[1723324002362,0.000832,61117.0,61116.0,1.68912243]
[1723324002571,0.000832,61117.0,61116.0,1.76972243]
[1723324003309,0.000832,61117.0,61116.0,1.81858491]
[1723324004829,0.000832,61117.0,61116.0,1.280481]
[1723324004984,0.000832,61117.0,61116.0,1.81808303]
[1723324005176,0.145432,61117.0,61116.0,1.73748303]
[1723324005362,0.145432,61117.0,61116.0,1.76919273]
[1723324007522,0.079032,61117.0,61116.0,1.76919273]
[1723324008363,0.079032,61117.0,61116.0,1.81808439]
[1723324008505,0.079032,61117.0,61116.0,1.64788373]
[1723324008710,0.079032,61117.0,61116.0,1.76881037]
[1723324009235,0.079032,61117.0,61116.0,1.81770203]
[1723324009637,0.079032,61117.0,61116.0,1.81770333]
[1723324010244,0.079032,61117.0,61116.0,1.81770335]
[1723324011539,0.000832,61117.0,61116.0,1.81770335]
[1723324012167,0.000832,61117.0,61116.0,1.76881039]
[1723324012379,0.000832,61117.0,61116.0,1.7690169]
[1723324014394,0.000832,61117.0,61116.0,1.84235634]
[1723324015811,0.000832,61117.0,61116.0,1.76175634]
[1723324016023,0.077432,61117.0,61116.0,1.43914831]
[1723324016224,0.077432,61117.0,61116.0,1.76923475]
[1723324016604,0.077432,61117.0,61116.0,1.76923283]
[1723324017068,0.000832,61117.0,61116.0,1.90723283]
[1723324017860,0.000832,61117.0,61116.0,1.46751589]
[1723324018073,0.000832,61117.0,61116.0,2.00473522]
[1723324019104,0.000832,61117.0,61116.0,1.90683785]
[1723324019788,0.000832,61117.0,61116.0,1.90683654]
[1723324022540,0.000832,61117.0,61116.0,1.90855344]
[1723324024666,0.000832,61117.0,61116.0,1.90055344]
[1723324024812,0.000832,61117.0,61116.0,1.91455344]
[1723324025019,0.000832,61117.0,61116.0,1.90655344]
[1723324025212,0.000832,61117.0,61116.0,1.89255344]
[1723324025457,0.000832,61117.0,61116.0,1.91455344]
[1723324025657,0.000832,61117.0,61116.0,1.90055344]
[1723324025895,0.000832,61117.0,61116.0,1.89255344]
[1723324026068,0.000832,61117.0,61116.0,1.90655344]
[1723324026272,0.000832,61117.0,61116.0,1.38161852]
[1723324026475,0.000832,61117.0,61116.0,1.92031702]
[1723324026677,0.000832,61117.0,61116.0,1.90631702]
[1723324026852,0.000832,61117.0,61116.0,1.92031701]
[1723324027242,0.000832,61117.0,61116.0,1.90631701]
[1723324027651,0.000832,61117.0,61116.0,1.92031701]
[1723324028184,0.000832,61117.0,61116.0,1.90621874]
[1723324028408,0.000832,61117.0,61116.0,1.92021874]
[1723324028635,0.000832,61117.0,61116.0,1.90621874]
[1723324028807,0.000832,61117.0,61116.0,1.89221874]
[1723324028967,0.000832,61117.0,61116.0,1.90621874]
[1723324029168,0.000832,61117.0,61116.0,1.92021874]
[1723324029707,0.000832,61117.0,61116.0,1.89221874]
[1723324030117,0.000832,61117.0,61116.0,1.90621874]
[1723324030421,0.000832,61117.0,61116.0,1.89221874]
[1723324030767,0.000832,61117.0,61116.0,1.90621874]
[1723324030970,0.000832,61117.0,61116.0,1.92021874]
[1723324031175,0.000832,61117.0,61116.0,1.90621874]
[1723324031374,0.000832,61117.0,61116.0,1.92021874]
[1723324031774,1e-06,61117.0,61116.0,1.92021874]
[1723324031985,0.00832,61121.0,61120.0,1.04931364]
[1723324032196,0.00832,61135.0,61127.0,0.247389]
[1723324032406,0.00832,61135.0,61131.0,0.1424]
[1723324032581,0.00832,61135.0,61134.0,0.81692692]
[1723324032781,0.00832,61135.0,61134.0,1.65427097]
[1723324032993,0.00832,61135.0,61134.0,1.64447081]
[1723324033199,0.00832,61135.0,61134.0,1.74447081]
[1723324033397,0.00832,61135.0,61134.0,1.82237081]
[1723324033600,0.00832,61135.0,61134.0,1.88585396]
[1723324034259,0.00832,61135.0,61134.0,1.89985396]
[1723324034462,0.00832,61135.0,61134.0,1.81925396]
[1723324034663,0.00832,61135.0,61134.0,1.82195396]
[1723324034973,0.00832,61135.0,61134.0,1.50339658]
[1723324035169,0.00832,61135.0,61134.0,1.57662411]
[1723324035576,0.00832,61135.0,61134.0,1.55220021]
[1723324035778,0.09472,61135.0,61134.0,1.39979658]
[1723324035983,0.10964932,61135.0,61134.0,1.24274672]
[1723324036139,0.10964932,61135.0,61134.0,1.10850192]
[1723324036336,0.09967236,61135.0,61134.0,1.10850192]
[1723324036778,0.09967236,61135.0,61134.0,0.94492692]
[1723324037080,0.10964932,61135.0,61134.0,0.94492692]
[1723324038109,0.10964932,61135.0,61134.0,1.07993154]
[1723324038479,0.17174932,61135.0,61134.0,1.07993154]
[1723324040015,0.17174932,61135.0,61134.0,0.94492692]
[1723324040224,0.17174932,61135.0,61134.0,0.273362]
[1723324040388,0.17174932,61135.0,61134.0,0.109787]
[1723324040595,0.18543616,61135.0,61134.0,0.273362]
[1723324041567,0.18543616,61135.0,61134.0,0.259362]
[1723324041768,0.18543616,61135.0,61134.0,0.260362]
[1723324042166,0.18543616,61135.0,61131.0,0.163582]
[1723324042372,0.15342932,61131.0,61130.0,0.245377]
[1723324042810,0.16710084,61131.0,61130.0,0.245377]
[1723324043029,0.17710084,61131.0,61130.0,0.081792]
[1723324043173,0.16342932,61130.0,61129.0,0.0009141]
[1723324043610,0.17702511,61130.0,61129.0,0.0827081]
[1723324045069,0.17902511,61130.0,61129.0,0.0827081]
[1723324045270,0.17902511,61130.0,61129.0,0.2462961]
[1723324050258,0.17906511,61130.0,61129.0,0.2462961]
[1723324052163,0.17906511,61130.0,61129.0,0.0827081]
[1723324052350,0.17906511,61130.0,61129.0,0.0009141]
[1723324052972,0.17906511,61130.0,61129.0,0.0827081]
[1723324053304,0.17706511,61130.0,61129.0,0.0827081]
[1723324053828,0.17806511,61130.0,61129.0,0.0827081]
[1723324054595,0.17706511,61130.0,61129.0,0.0827081]
[1723324055007,0.17806511,61130.0,61129.0,0.0827081]
[1723324058675,0.17806511,61130.0,61129.0,0.0009141]
[1723324061092,0.17806511,61130.0,61129.0,0.0827081]
[1723324062812,0.16808815,61130.0,61129.0,0.0827081]
[1723324063009,0.17806511,61130.0,61129.0,0.0827081]
[1723324065014,0.17889611,61130.0,61129.0,0.0827081]
[1723324065412,0.19816517,61130.0,61129.0,0.0827081]
[1723324066196,0.17889611,61130.0,61129.0,0.0827081]
[1723324066554,0.19816747,61130.0,61129.0,0.0827081]
[1723324067060,0.19816746,61130.0,61129.0,0.0827081]
[1723324069125,0.19815835,61130.0,61129.0,0.0827081]
[1723324071286,0.19815835,61130.0,61129.0,0.38176572]
[1723324071691,0.19815835,61130.0,61129.0,0.21817772]
[1723324072450,0.17889611,61130.0,61129.0,0.0827081]
[1723324072656,0.19795748,61130.0,61129.0,0.21857439]
[1723324074668,0.19795748,61130.0,61129.0,0.38216239]
[1723324074881,0.19795748,61130.0,61129.0,0.21857439]
[1723324075532,0.19795748,61130.0,61129.0,0.38216239]
[1723324076103,0.19795748,61130.0,61129.0,0.38216236]
[1723324076312,0.19795748,61130.0,61129.0,0.21857436]
[1723324076515,0.17889611,61130.0,61129.0,0.21857436]
[1723324076715,0.1979738,61130.0,61129.0,0.21857436]
[1723324077174,0.1979738,61130.0,61129.0,0.38216236]
[1723324077785,0.19799139,61130.0,61129.0,0.38216236]
[1723324078821,0.19799139,61130.0,61129.0,0.21857436]
[1723324079632,0.19799139,61130.0,61129.0,0.21857759]
[1723324081320,0.19799139,61130.0,61129.0,0.13678359]
[1723324081517,0.19799139,61130.0,61129.0,0.21857759]
[1723324082138,0.19816505,61130.0,61129.0,0.21857759]
[1723324083180,0.28001151,61130.0,61129.0,0.0009141]
[1723324084701,0.27901151,61130.0,61129.0,0.0009141]
[1723324085107,0.28001151,61130.0,61129.0,0.0009141]
[1723324085515,0.32892795,61130.0,61129.0,0.0009141]
[1723324085718,0.39145101,61130.0,61129.0,0.0009141]
[1723324085919,0.41075904,61130.0,61129.0,0.0009141]
[1723324087124,0.32896704,61130.0,61129.0,0.0009141]
[1723324087324,0.32913583,61130.0,61129.0,0.0009141]
[1723324087632,0.35367845,61130.0,61129.0,0.0009141]
[1723324087826,0.2800506,61130.0,61129.0,0.0009141]
[1723324088230,0.35367845,61130.0,61129.0,0.0009141]
[1723324089041,0.26185503,61130.0,61129.0,0.0009141]
[1723324089241,0.27183199,61130.0,61129.0,0.0009141]
[1723324089624,0.27169543,61130.0,61129.0,0.0009141]
[1723324091164,0.24717268,61130.0,61129.0,0.0009141]
[1723324091564,0.19806758,61130.0,61129.0,0.0009141]
[1723324092029,0.2471746,61130.0,61129.0,0.0009141]
[1723324092166,0.19806758,61130.0,61129.0,0.0009141]
[1723324092813,0.27169543,61130.0,61129.0,0.0009141]
[1723324093012,0.25252396,61130.0,61129.0,0.0009141]
[1723324093264,0.27171462,61130.0,61129.0,0.0009141]
[1723324094582,0.35356108,61130.0,61129.0,0.0009141]
[1723324096324,0.35360022,61130.0,61129.0,0.0009141]
[1723324096533,0.26074257,61130.0,61129.0,0.0009141]
[1723324096706,0.27991582,61130.0,61129.0,0.0009141]
[1723324096909,0.35358275,61130.0,61129.0,0.0009141]
[1723324097117,0.35358205,61130.0,61129.0,0.0009141]
[1723324098186,0.28991512,61130.0,61129.0,0.0009141]
[1723324098335,0.27991512,61130.0,61129.0,0.0009141]
[1723324098544,0.37813769,61130.0,61129.0,0.0009141]
[1723324098963,0.01546679,61130.0,61129.0,1.08181119]
[1723324099117,0.01546679,61130.0,61129.0,1.63467762]
[1723324099118,0.01018755,61130.0,61129.0,1.63467762]
[1723324099476,0.001871,61130.0,61129.0,1.79826562]
[1723324100010,0.000871,61130.0,61129.0,1.79826562]
[1723324100183,0.005871,61130.0,61129.0,1.79746103]
[1723324100413,0.005871,61130.0,61129.0,1.76652606]
[1723324100525,0.000871,61130.0,61129.0,1.75694173]
[1723324100926,0.000871,61130.0,61129.0,1.77094173]
[1723324101317,0.000871,61130.0,61129.0,1.76493852]
[1723324101514,0.000871,61130.0,61129.0,1.64611735]
[1723324102323,0.000871,61130.0,61129.0,1.6507743]
[1723324102527,0.000871,61130.0,61129.0,1.41735733]
[1723324102657,0.000871,61130.0,61129.0,1.54859981]
[1723324102857,0.000871,61130.0,61129.0,1.64624616]
[1723324103060,0.000871,61130.0,61129.0,1.54859981]
[1723324103307,0.000871,61130.0,61129.0,1.55059981]
[1723324103512,0.000871,61130.0,61129.0,1.35144602]
[1723324103726,0.000871,61130.0,61129.0,1.55060111]
[1723324104384,0.000871,61130.0,61129.0,1.62378783]
[1723324105155,0.000871,61130.0,61129.0,1.64824746]
[1723324105362,0.000871,61130.0,61129.0,1.55060111]
[1723324106091,0.000871,61130.0,61129.0,1.62375699]
[1723324106297,0.000871,61130.0,61129.0,1.38083011]
[1723324106511,0.000871,61130.0,61129.0,1.42959414]
[1723324106992,0.000871,61130.0,61129.0,1.29834762]
[1723324107193,0.000871,61130.0,61129.0,1.38078223]
[1723324107401,0.000871,61130.0,61129.0,1.42954093]
[1723324107581,0.000871,61130.0,61129.0,1.31287366]
[1723324107809,0.000871,61130.0,61129.0,1.38078242]
[1723324108166,0.000871,61130.0,61129.0,1.42954112]
[1723324108489,0.000871,61130.0,61129.0,1.38078242]
[1723324109348,0.000871,61130.0,61129.0,1.42954112]
[1723324109694,0.000871,61130.0,61129.0,1.42951211]
[1723324109914,0.000871,61130.0,61129.0,1.59727536]
[1723324110142,0.000871,61130.0,61129.0,1.37878242]
[1723324110770,0.000871,61130.0,61129.0,1.24758276]
[1723324110949,0.000871,61130.0,61129.0,1.37866075]
[1723324112480,0.000871,61130.0,61129.0,1.38066075]
[1723324114317,0.000871,61130.0,61129.0,1.38066087]
[1723324114883,0.000871,61130.0,61129.0,1.37866087]
[1723324115090,0.000871,61130.0,61129.0,1.39115301]
[1723324117960,0.000871,61130.0,61129.0,1.26007502]
[1723324118170,0.000871,61130.0,61129.0,1.39103189]
[1723324121530,0.000871,61130.0,61129.0,1.26007502]
[1723324121795,0.000871,61130.0,61129.0,1.39105037]
[1723324123356,0.000871,61130.0,61129.0,1.4589626]
[1723324124795,0.000871,61130.0,61129.0,1.62873799]
[1723324125151,0.000871,61130.0,61129.0,1.4977624]
[1723324125373,0.000871,61130.0,61129.0,1.62878076]
[1723324126576,0.00832,61135.0,61129.0,1.62878076]
[1723324126577,0.00832,61135.0,61134.0,0.08683464]
[1723324126773,0.01,61157.0,61148.0,0.408842]
[1723324126982,0.01495236,61157.0,61148.0,1.42386151]
[1723324127188,0.01495236,61157.0,61148.0,1.61658584]
[1723324128145,0.00997696,61157.0,61148.0,1.63058584]
[1723324128503,0.00997696,61157.0,61148.0,1.26193092]
[1723324128647,0.00495236,61157.0,61148.0,1.68212739]
[1723324128857,0.00997696,61155.0,61148.0,1.68212739]
[1723324129070,0.01495236,61157.0,61148.0,1.38056814]
[1723324129071,0.00997696,61156.0,61148.0,1.38056814]
[1723324129271,0.01495236,61157.0,61148.0,1.63136779]
[1723324129272,0.00997696,61155.0,61148.0,1.63136779]
[1723324129444,0.01495236,61157.0,61148.0,1.63136779]
[1723324130404,0.01495236,61157.0,61148.0,1.64536779]
[1723324130967,0.0827,61155.0,61148.0,1.47565146]
[1723324132011,0.0827,61155.0,61148.0,1.26193092]
[1723324132210,0.0827,61155.0,61148.0,1.39387923]
[1723324132443,0.0827,61155.0,61148.0,1.47577075]
[1723324132782,0.0827,61155.0,61148.0,1.47577181]
[1723324132901,0.0827,61155.0,61148.0,1.39387923]
[1723324133096,0.0827,61155.0,61148.0,1.46177065]
[1723324133301,0.00997696,61153.0,61148.0,1.46177065]
[1723324133504,0.01007696,61149.0,61148.0,1.18267923]
[1723324133726,0.02502932,61149.0,61148.0,1.24007923]
[1723324133915,0.02502932,61149.0,61148.0,1.22607923]
[1723324134748,0.10292932,61149.0,61148.0,1.22607923]
[1723324135545,0.10292932,61149.0,61148.0,1.22596173]
[1723324135767,0.10376132,61149.0,61148.0,1.22596173]
[1723324135976,0.10376132,61149.0,61148.0,1.23996173]
[1723324136347,0.10376132,61149.0,61148.0,1.24971673]
[1723324138618,0.000932,61149.0,61148.0,1.32651673]
[1723324138794,0.000932,61149.0,61148.0,1.34951673]
[1723324138997,0.000932,61149.0,61148.0,1.21768592]
[1723324139231,0.000932,61149.0,61148.0,1.34962105]
[1723324139675,0.000932,61149.0,61148.0,1.34167898]
[1723324139801,0.000932,61149.0,61148.0,1.27378781]
[1723324140005,0.000932,61149.0,61148.0,1.34167898]
[1723324140890,0.000932,61149.0,61148.0,1.34160417]
[1723324141346,0.000932,61149.0,61148.0,1.27371318]
[1723324141642,0.000932,61149.0,61148.0,1.34147543]
[1723324142075,0.000932,61149.0,61148.0,1.2735842]
[1723324144989,0.000932,61149.0,61148.0,1.14088592]
[1723324145230,0.000932,61149.0,61148.0,1.27336946]
[1723324148576,0.000932,61149.0,61148.0,1.14088592]
[1723324148756,0.000932,61149.0,61148.0,1.27344465]
[1723324148961,0.000932,61149.0,61148.0,1.14088592]
[1723324149206,0.000932,61149.0,61148.0,1.27344515]
[1723324152376,0.000932,61149.0,61148.0,1.3412995]
[1723324155434,0.000932,61149.0,61148.0,1.51103627]
[1723324155638,0.000932,61149.0,61148.0,1.57713627]
[1723324155836,0.000932,61149.0,61148.0,1.65343602]
[1723324156227,0.000932,61149.0,61148.0,1.81745421]
[1723324156635,0.000932,61149.0,61148.0,1.81945421]
[1723324157505,0.000932,61149.0,61148.0,1.81745421]
[1723324157703,0.000932,61149.0,61148.0,1.81945421]
[1723324158106,0.000932,61149.0,61148.0,1.81745421]
[1723324158930,0.000932,61149.0,61148.0,1.98099121]
[1723324159336,0.000932,61149.0,61148.0,1.61903157]
[1723324159534,0.000932,61149.0,61148.0,2.08354031]
[1723324159950,0.000932,61149.0,61148.0,1.71886893]
[1723324160159,0.000932,61149.0,61148.0,2.08353462]
[1723324160919,0.000932,61149.0,61148.0,2.08342423]
[1723324162786,0.000932,61149.0,61148.0,1.54913932]
[1723324163278,0.000932,61149.0,61148.0,1.61703102]
[1723324163679,0.000932,61149.0,61148.0,1.54913932]
[1723324163911,0.000932,61149.0,61148.0,2.08347048]
[1723324164322,0.000932,61149.0,61148.0,2.13220553]
[1723324165329,0.000932,61149.0,61148.0,2.11824147]
[1723324165572,0.000932,61149.0,61148.0,2.10424147]
[1723324165750,0.000932,61149.0,61148.0,2.11824147]
[1723324166372,0.000932,61149.0,61148.0,2.08347048]
[1723324167500,0.000932,61149.0,61148.0,2.02429288]
[1723324167698,0.000932,61149.0,61148.0,2.15718502]
[1723324167929,0.000932,61149.0,61148.0,2.14318502]